bitfinex/quotes_ETHUSD_20250827
["timestamp","ask_amount","ask_price","bid_price","bid_amount"]
[1756310195330,0.01920001,4664.8,4664.7,2.14376058]
[1756310195646,0.31030001,4664.8,4664.7,2.14376058]
[1756310195951,0.31030001,4664.8,4664.7,5.88176058]
[1756310196153,0.01920001,4664.8,4664.7,6.19056058]
[1756310196806,0.01920001,4664.8,4664.7,7.06746108]
[1756310197010,0.01920001,4664.8,4664.7,7.60926108]
[1756310197936,0.01920001,4664.8,4664.7,3.43666108]
[1756310198249,0.01920001,4664.8,4664.7,7.60926108]
[1756310199459,0.01920001,4664.8,4664.7,8.26926108]
[1756310199940,0.01920001,4664.8,4664.7,7.83366108]
[1756310200358,0.31030001,4664.8,4664.7,3.12786108]
[1756310200555,0.01920001,4664.8,4664.7,6.29676058]
[1756310200731,0.01920001,4664.8,4664.7,6.73136058]
[1756310202668,0.01920001,4664.8,4664.7,2.25096058]
[1756310202833,0.31030001,4664.8,4664.7,5.98796058]
[1756310203162,0.00300001,4665.5,4664.8,0.66]
[1756310203374,0.00300001,4665.5,4665.4,2.80343893]
[1756310203532,0.00300001,4665.5,4665.4,6.84823893]
[1756310203732,0.00300001,4665.5,4665.4,7.28283893]
[1756310204237,0.00300001,4665.5,4665.4,7.23283893]
[1756310204428,0.00220001,4665.5,4665.4,8.20602904]
[1756310205317,0.00220001,4665.5,4665.4,7.77142904]
[1756310205472,0.00220001,4665.5,4665.4,8.20602904]
[1756310206851,0.00420001,4665.5,4665.4,8.20602904]
[1756310212162,0.00420001,4665.5,4665.4,11.20602904]
[1756310213073,1e-08,4665.5,4665.4,11.20602904]
[1756310213228,0.35549033,4665.8,4665.7,2.80330111]
[1756310213229,1e-08,4665.8,4665.7,2.80330111]
[1756310213431,0.003,4666.9,4666.8,5.80279592]
[1756310213432,1e-08,4666.9,4666.8,5.80279592]
[1756310213750,1e-08,4666.9,4666.8,18.80795083]
[1756310213953,1e-08,4666.9,4666.8,8.28108092]
[1756310214128,1e-08,4666.9,4666.8,3.89899592]
[1756310214326,0.00230001,4666.9,4666.8,5.98399592]
[1756310215062,1e-08,4666.9,4666.8,5.98399592]
[1756310215267,1e-08,4666.9,4666.8,6.95378453]
[1756310215441,1e-08,4666.9,4666.8,7.26258453]
[1756310215645,1e-08,4666.9,4666.8,7.61378453]
[1756310215868,0.00230001,4666.9,4666.8,6.95378453]
[1756310216161,0.00230001,4666.9,4666.8,0.1072]
[1756310216343,0.00230001,4666.9,4666.8,3.734]
[1756310216546,0.00230001,4666.9,4666.8,5.87679592]
[1756310216941,1e-08,4666.9,4666.8,5.87679592]
[1756310217354,0.00450001,4666.9,4666.8,5.87679592]
[1756310219447,1e-08,4666.9,4666.8,5.87679592]
[1756310219768,1e-08,4666.9,4666.8,7.449024]
[1756310220067,1e-08,4666.9,4666.8,8.109024]
[1756310220240,1e-08,4666.9,4666.8,8.216224]
[1756310220849,0.00230001,4666.9,4666.8,6.811824]
[1756310221068,0.00230001,4666.9,4666.8,5.98299592]
[1756310221263,1e-08,4666.9,4666.8,6.95179592]
[1756310221469,1e-08,4666.9,4666.8,7.38639592]
[1756310221844,1e-08,4666.9,4666.8,6.92979592]
[1756310222171,1e-08,4666.9,4666.8,7.37879592]
[1756310222333,1e-08,4666.9,4666.8,8.347104]
[1756310222974,1e-08,4666.9,4666.8,8.367104]
[1756310223339,1e-08,4666.9,4666.8,11.367104]
[1756310226968,1e-08,4666.9,4666.8,7.634104]
[1756310227141,1e-08,4666.9,4666.8,11.366104]
[1756310227879,1e-08,4666.9,4666.8,11.346104]
[1756310228075,0.02,4667.8,4667.7,2.80238275]
[1756310228076,1e-08,4667.8,4667.7,2.80238275]
[1756310228245,1e-08,4667.8,4667.7,11.20280657]
[1756310228444,1e-08,4667.8,4667.7,12.02438275]
[1756310228868,0.00213097,4668.4,4668.3,2.8021074]
[1756310229070,0.00213097,4668.4,4668.3,5.8731074]
[1756310229275,0.00213097,4668.4,4668.3,6.6403074]
[1756310229666,0.00213097,4668.4,4668.3,6.9271074]
[1756310229987,0.00213097,4668.4,4668.3,7.80535558]
[1756310230377,0.00213097,4668.4,4668.3,3.78755558]
[1756310230701,0.00213097,4668.4,4668.3,7.51855558]
[1756310231201,0.00213097,4668.4,4668.3,8.25435558]
[1756310231766,0.00213097,4668.4,4668.3,7.80535558]
[1756310231972,0.22783097,4668.4,4668.3,3.8372]
[1756310232168,0.22783097,4668.4,4668.3,5.9793074]
[1756310232381,0.00443097,4668.4,4668.3,5.9793074]
[1756310232900,0.00443097,4668.4,4668.3,0.1072]
[1756310233265,0.00443097,4668.4,4668.3,5.9793074]
[1756310233467,0.22783097,4668.4,4668.3,5.9793074]
[1756310233682,0.22783097,4668.4,4668.3,3.8372]
[1756310233904,0.22783097,4668.4,4668.3,0.1072]
[1756310234102,0.22783097,4668.4,4668.3,3.73]
[1756310234103,0.56316103,4668.4,4668.3,3.73]
[1756310234403,0.33976103,4668.4,4668.3,3.73]
[1756310234705,0.00213097,4668.4,4668.3,6.9158274]
[1756310234880,0.00213097,4668.4,4668.3,7.2026274]
[1756310235205,0.00213097,4668.4,4668.3,6.9158274]
[1756310235376,0.00443097,4668.4,4668.3,6.9158274]
[1756310235806,0.00443097,4668.4,4668.3,2.1421074]
[1756310236004,0.00443097,4668.4,4668.3,5.8721074]
[1756310236699,0.22783097,4668.4,4668.3,5.8721074]
[1756310237574,0.22783097,4668.4,4668.1,0.1072]
[1756310237905,0.2234,4668.3,4668.1,3.8372]
[1756310238105,0.0045,4668.2,4668.1,3.8372]
[1756310238277,0.2257,4668.2,4668.1,3.8372]
[1756310238469,0.2257,4668.2,4668.1,0.1072]
[1756310239584,0.0045,4668.2,4668.1,2.24939918]
[1756310240093,0.0045,4668.2,4667.7,1.648]
[1756310240294,2.36340861,4668.1,4667.4,3.729]
[1756310240604,2.36340861,4668.1,4667.0,2.14268364]
[1756310240605,0.2256,4667.5,4667.3,3.729]
[1756310240808,0.0023,4667.4,4666.7,1.648]
[1756310241116,0.0023,4667.4,4667.0,2.24989923]
[1756310241410,0.0023,4667.4,4667.0,2.24989709]
[1756310241619,0.2256,4667.1,4667.0,2.24989709]
[1756310241807,0.2279,4667.1,4667.0,0.1072]
[1756310242201,0.2279,4667.1,4667.0,2.24990409]
[1756310242405,0.2279,4667.1,4666.8,2.14279378]
[1756310242617,0.0023,4667.0,4666.9,2.14274813]
[1756310242956,0.0023,4667.0,4666.9,5.87175]
[1756310243435,0.0023,4667.0,4666.9,2.14275]
[1756310243904,0.33541982,4667.7,4667.1,2.14261574]
[1756310244231,0.22090198,4667.6,4667.1,5.87164929]
[1756310244446,0.0023,4667.2,4667.1,5.87164929]
[1756310244754,0.33541982,4667.7,4667.2,2.14258996]
[1756310244928,0.0023,4667.2,4666.8,2.14276489]
[1756310245128,0.0023,4667.2,4666.9,3.729]
[1756310245299,0.0023,4667.2,4667.0,2.14270409]
[1756310245659,0.2234,4667.7,4667.3,2.14256135]
[1756310246106,0.0045,4667.4,4667.3,2.14256135]
[1756310246530,0.20028031,4668.0,4667.3,2.14256135]
[1756310246733,0.00413097,4668.4,4667.9,2.14229096]
[1756310247039,0.00413097,4668.4,4668.3,2.1421074]
[1756310247803,0.00643097,4668.4,4668.2,2.14211617]
[1756310248031,0.00643097,4668.4,4668.0,3.729]
[1756310248232,0.00643097,4668.4,4668.2,2.14215329]
[1756310248408,0.00643097,4668.4,4663.5,1.07891491]
[1756310248409,0.2234,4668.3,4667.5,3.729]
[1756310248608,0.2234,4668.3,4667.7,2.14238275]
[1756310248808,0.46035016,4668.3,4667.8,2.14232613]
[1756310249042,0.0045,4667.9,4667.8,2.14232613]
[1756310249236,0.0045,4667.9,4667.6,3.729]
[1756310249413,0.0045,4667.9,4667.7,2.14234317]
[1756310249922,0.0045,4667.9,4667.6,3.729]
[1756310250236,0.0045,4667.9,4667.6,2.14241848]
[1756310250444,0.2212,4667.8,4667.1,2.14261553]
[1756310250744,0.2212,4667.8,4667.0,5.8706897]
[1756310250745,0.23679567,4667.7,4667.0,5.8706897]
[1756310250945,2.14225382,4668.0,4667.2,2.14257842]
[1756310251148,0.0023,4667.3,4666.9,3.728]
[1756310251358,0.2234,4667.2,4666.0,2.097]
[1756310251554,0.2234,4667.2,4666.5,3.729]
[1756310251905,2.14260184,4667.3,4666.5,3.729]
[1756310252141,0.21426018,4667.2,4666.5,3.729]
[1756310252336,0.1072,4666.9,4666.5,5.87192552]
[1756310252524,0.1072,4666.9,4666.6,2.14288349]
[1756310252724,0.1072,4666.9,4666.5,3.729]
[1756310252904,0.0023,4666.6,4666.5,0.001]
[1756310253105,0.1072,4666.9,4666.5,3.729]
[1756310253340,0.2256,4667.6,4666.6,0.4556]
[1756310253540,0.1072,4667.1,4666.9,2.14271562]
[1756310253837,0.1072,4667.1,4666.7,2.14283192]
[1756310254145,0.1072,4667.1,4666.8,2.14279435]
[1756310254333,0.1072,4667.1,4666.5,3.729]
[1756310254642,0.33544379,4667.1,4667.0,2.44950409]
[1756310254844,0.33544379,4667.1,4666.5,0.001]
[1756310255008,0.0023,4666.6,4666.5,0.001]
[1756310255339,2.14518775,4666.6,4666.5,0.001]
[1756310255556,2.47578775,4666.6,4666.5,0.001]
[1756310255728,2.47578775,4666.6,4663.7,0.001]
[1756310255729,2.14320924,4665.9,4664.7,1.2542]
[1756310255924,2.14320924,4665.9,4664.3,0.4556]
[1756310255925,2.25040924,4665.9,4664.4,2.25105827]
[1756310256118,0.53309166,4665.9,4664.1,0.001]
[1756310256317,0.1072,4664.5,4664.1,0.001]
[1756310256716,0.1072,4664.5,4664.2,2.14398871]
[1756310257043,0.08521441,4664.5,4664.1,0.001]
[1756310257244,0.08521441,4664.5,4664.4,2.45069846]
[1756310257444,0.1072,4665.0,4664.4,1.26752888]
[1756310257620,0.1072,4665.0,4664.4,0.414]
[1756310257820,1.8736,4665.4,4664.1,3.729]
[1756310258027,0.0023,4664.5,4664.1,3.729]
[1756310258423,0.1072,4664.6,4664.4,0.3068]
[1756310258634,1.648,4666.1,4664.6,0.66]
[1756310258958,0.1072,4665.8,4665.1,0.1072]
[1756310259159,0.44276328,4665.8,4665.1,0.1072]
[1756310259771,0.44276328,4665.8,4665.1,2.25077607]
[1756310259969,0.44276328,4665.8,4665.1,0.1072]
[1756310260574,0.0023,4665.2,4664.8,2.14370443]
[1756310260781,0.0023,4665.2,4662.7,2.14565704]
[1756310260782,0.1072,4664.9,4664.3,0.1072]
[1756310260989,0.0045,4664.4,4664.3,0.1072]
[1756310261285,0.55902373,4664.8,4664.3,0.1072]
[1756310261590,0.55902373,4664.8,4663.8,0.4556]
[1756310261591,0.1072,4664.5,4664.0,2.14408005]
[1756310261759,0.1072,4664.5,4663.8,0.5628]
[1756310262362,0.1072,4664.5,4663.8,2.70696647]
[1756310262697,0.1072,4664.5,4664.1,2.14503087]
[1756310263199,0.1072,4664.5,4664.1,0.001]
[1756310263360,0.1072,4664.5,4664.3,2.14394041]
[1756310263565,0.1072,4664.5,4664.1,0.001]
[1756310264497,0.1072,4664.5,4664.1,0.4566]
[1756310264687,0.1072,4664.5,4664.1,2.60062929]
[1756310264886,0.1072,4664.5,4664.2,2.14398422]
[1756310265089,0.1072,4664.5,4664.3,2.14394209]
[1756310265290,0.1072,4664.5,4664.1,0.001]
[1756310265291,3.0,4665.0,4664.1,0.001]
[1756310265480,0.0045,4664.2,4664.1,0.001]
[1756310265799,0.1072,4664.3,4664.1,0.001]
[1756310266308,0.1072,4664.3,4664.1,2.14499168]
[1756310266809,0.1072,4664.3,4664.2,0.3068]
[1756310267019,0.1072,4664.3,4664.2,2.90639039]
[1756310267569,0.4648,4664.9,4664.2,2.90639039]
[1756310267819,0.1072,4664.5,4664.2,0.7624]
[1756310268101,0.1072,4664.8,4664.3,2.59953336]
[1756310268618,0.33561755,4664.7,4664.1,0.1082]
[1756310268770,0.33561755,4664.7,4664.1,0.001]
[1756310268969,0.33561755,4664.7,4664.3,2.143942]
[1756310269211,0.33561755,4664.7,4664.1,0.001]
[1756310269420,0.33561755,4664.7,4664.2,2.14398788]
[1756310269601,0.33561755,4664.7,4664.3,2.14393648]
[1756310270119,0.33561755,4664.7,4664.2,0.4556]
[1756310270279,0.33561755,4664.7,4664.1,0.001]
[1756310270496,0.33561755,4664.7,4664.2,2.1439823]
[1756310270691,0.33561755,4664.7,4664.1,2.1450339]
[1756310270692,0.1072,4664.6,4664.1,2.1450339]
[1756310270908,0.5835448,4664.7,4664.1,0.001]
[1756310271281,0.5835448,4664.7,4664.1,2.1450022]
[1756310271282,0.1072,4664.5,4664.1,2.1450022]
[1756310271481,0.1072,4664.5,4664.1,0.001]
[1756310271899,0.1072,4664.5,4664.3,2.14391961]
[1756310272117,0.1072,4664.5,4664.1,2.14499937]
[1756310272297,0.1072,4664.5,4664.2,2.14397574]
[1756310272620,0.1072,4664.5,4664.2,2.14398027]
[1756310272988,0.1072,4664.5,4664.4,0.3068]
[1756310273183,0.1072,4664.5,4664.4,2.90629846]
[1756310273688,0.33561755,4664.7,4664.6,2.14380654]
[1756310274284,0.33561755,4664.7,4664.6,2.90620654]
[1756310274518,1.649,4665.8,4664.6,2.90620654]
[1756310274519,0.1072,4665.3,4665.1,2.14353849]
[1756310274720,3.0,4666.2,4665.2,0.3068]
[1756310274912,0.1072,4665.6,4665.3,2.14344459]
[1756310275118,0.1072,4665.6,4665.5,2.14339299]
[1756310275421,0.1072,4665.6,4665.3,0.4556]
[1756310275636,0.1072,4665.6,4664.9,0.1072]
[1756310275812,0.1072,4665.6,4665.2,2.14349187]
[1756310275998,0.1072,4665.6,4664.9,0.1072]
[1756310276199,0.1072,4665.6,4665.5,2.14339299]
[1756310276450,4.649,4666.5,4665.6,2.14330301]
[1756310276598,0.1072,4665.9,4665.7,2.14328314]
[1756310276800,0.1072,4665.9,4665.8,0.7624]
[1756310277002,0.1072,4665.9,4665.8,2.90565517]
[1756310277432,2.14279769,4666.8,4666.0,2.14312461]
[1756310277732,2.14279769,4666.8,4665.8,2.90565517]
[1756310277733,1.18846397,4666.7,4665.9,0.1072]
[1756310277931,0.1064,4666.6,4665.9,0.1072]
[1756310278139,0.1064,4666.6,4666.2,2.14305974]
[1756310278303,0.1064,4666.6,4665.9,0.1072]
[1756310278635,0.1064,4666.6,4666.0,2.1431633]
[1756310278838,0.1064,4666.6,4666.1,2.14310221]
[1756310279536,0.1064,4666.6,4666.0,2.14315531]
[1756310279703,0.0023,4666.1,4665.9,0.1072]
[1756310279911,0.1072,4666.0,4665.1,0.1072]
[1756310280136,0.1072,4666.0,4665.2,2.14353082]
[1756310280444,2.14320728,4666.0,4665.1,2.25073745]
[1756310280654,0.1072,4665.2,4664.4,5.87185574]
[1756310280846,0.1072,4665.2,4664.5,2.14381123]
[1756310281020,0.1072,4665.2,4664.3,0.5628]
[1756310281349,0.1072,4665.2,4664.4,3.728]
[1756310282060,0.1072,4665.2,4664.7,2.143759]
[1756310282557,0.1072,4665.2,4664.7,0.4333]
[1756310282724,0.1072,4665.2,4665.1,0.3109]
[1756310283020,0.33558674,4665.3,4665.1,0.7442]
[1756310283224,0.33558674,4665.3,4665.2,2.57683082]
[1756310283457,7.0292,4665.9,4665.8,2.14325517]
[1756310283626,7.0292,4665.9,4665.8,2.45415517]
[1756310283835,7.0292,4665.9,4665.8,2.88745517]
[1756310285729,7.0292,4665.9,4665.6,2.25050999]
[1756310285918,7.0292,4665.9,4665.6,0.1072]
[1756310286123,7.0292,4665.9,4665.8,2.14325517]
[1756310287125,7.0292,4665.9,4665.8,2.45415517]
[1756310287755,7.0292,4665.9,4665.8,2.409803]
[1756310289263,7.0292,4665.9,4665.8,2.843103]
[1756310289466,7.0292,4665.9,4665.8,3.72526789]
[1756310289664,7.0292,4665.9,4665.8,5.37426789]
[1756310289845,0.002,4666.6,4666.5,2.14293367]
[1756310290046,0.002,4666.6,4666.5,5.97813367]
[1756310290244,0.002,4666.6,4666.5,6.72233367]
[1756310290663,0.002,4666.6,4666.5,5.87093367]
[1756310291778,0.002,4666.6,4666.5,3.728]
[1756310292187,0.0043,4666.6,4666.4,3.728]
[1756310292370,0.0043,4666.6,4666.0,2.14316214]
[1756310292574,0.1072,4666.4,4666.3,2.14299202]
[1756310292781,0.1072,4666.4,4666.3,2.88719202]
[1756310292954,0.002,4666.6,4666.3,0.7442]
[1756310293157,0.1092,4666.6,4666.4,0.4333]
[1756310293356,0.002,4666.6,4666.5,2.14293367]
[1756310294301,0.002,4666.6,4666.4,2.14297127]
[1756310294896,0.002,4666.6,4666.1,5.97828198]
[1756310294897,0.002,4666.6,4666.5,2.14293367]
[1756310295262,0.0043,4666.6,4666.3,3.727]
[1756310295607,0.0043,4666.6,4666.2,5.37003696]
[1756310295608,0.1072,4666.3,4666.2,5.37003696]
[1756310295803,0.1072,4666.3,4666.2,3.227]
[1756310296005,0.1072,4666.3,4666.2,5.37007145]
[1756310297613,0.1072,4666.3,4666.2,2.14307145]
[1756310297782,0.1072,4666.3,4666.2,5.87007145]
[1756310298515,0.1072,4666.3,4666.2,6.61427145]
[1756310299007,0.002,4666.6,4666.5,2.14293367]
[1756310299172,0.002,4666.6,4666.5,5.86993367]
[1756310299368,0.002,4666.6,4666.5,6.72133367]
[1756310299566,0.002,4666.6,4666.5,7.38133367]
[1756310300302,0.002,4666.6,4666.5,6.72133367]
[1756310300495,0.002,4666.6,4666.5,5.86993367]
[1756310300894,0.002,4666.6,4666.5,3.727]
[1756310301097,0.0043,4666.6,4666.5,3.727]
[1756310301296,0.0043,4666.6,4666.5,5.86993367]
[1756310301498,0.002,4666.6,4666.5,5.86993367]
[1756310301695,0.002,4666.6,4666.5,3.727]
[1756310302009,0.002,4666.6,4666.5,5.86993367]
[1756310302400,0.0012,4666.6,4666.5,5.86993367]
[1756310303282,0.0012,4666.6,4666.5,6.61413367]
[1756310305181,0.0012,4666.6,4666.5,6.72133367]
[1756310305375,0.0012,4666.6,4666.5,7.60776708]
[1756310305625,0.0012,4666.6,4666.5,3.727]
[1756310305814,0.0035,4666.6,4666.5,3.727]
[1756310306623,0.0035,4666.6,4666.5,5.86993367]
[1756310306830,0.0035,4666.6,4666.5,3.727]
[1756310307028,0.0035,4666.6,4666.4,2.14295936]
[1756310307227,0.0012,4666.6,4666.5,6.18083367]
[1756310307719,0.0012,4666.6,4666.5,6.61413367]
[1756310307950,0.0012,4666.6,4666.5,7.50056699]
[1756310308852,0.0012,4666.6,4666.5,8.16056699]
[1756310310335,0.002,4667.1,4667.0,2.80270409]
[1756310310536,0.002,4667.1,4667.0,8.30533113]
[1756310310841,0.002,4667.1,4667.0,9.02810409]
[1756310311047,0.002,4667.1,4667.0,10.14519159]
[1756310314775,0.02,4667.8,4667.7,2.14238275]
[1756310315087,0.02,4667.8,4667.7,5.86838275]
[1756310315258,0.02,4667.8,4667.7,6.63668275]
[1756310315973,0.02,4667.8,4667.7,6.74388275]
[1756310316583,0.02,4667.8,4667.7,6.28568275]
[1756310316867,0.02,4667.8,4667.7,6.74388275]
[1756310317037,0.02,4667.8,4667.7,7.63251603]
[1756310317852,0.02,4667.8,4667.7,7.17431603]
[1756310318790,0.02,4667.8,4667.7,3.13821603]
[1756310318939,0.2457,4667.8,4667.0,1.648]
[1756310319141,0.3529,4667.8,4667.0,1.648]
[1756310319451,0.1295,4667.8,4667.7,2.14238275]
[1756310319834,0.1295,4667.8,4667.6,5.51941785]
[1756310320072,0.1295,4667.8,4667.6,3.377]
[1756310320271,0.3529,4667.8,4667.6,5.51938749]
[1756310320449,0.1295,4667.8,4667.7,2.14238275]
[1756310321040,0.1295,4667.8,4667.6,5.51941922]
[1756310321342,0.1295,4667.8,4667.7,2.14238275]
[1756310321859,0.1272,4667.8,4667.7,2.14238275]
[1756310322066,0.02,4667.8,4667.7,2.14238275]
[1756310322584,0.0223,4667.8,4667.7,2.14238275]
[1756310322870,0.0223,4667.8,4667.7,5.86738275]
[1756310323061,0.2457,4667.8,4667.0,1.648]
[1756310323260,0.1072,4667.3,4667.2,5.86760559]
[1756310323444,0.1072,4667.7,4667.6,2.14242865]
[1756310323772,0.1117,4667.7,4667.6,5.86742865]
[1756310324148,0.1072,4667.7,4667.6,5.86742865]
[1756310324357,0.02,4667.8,4667.7,2.14238275]
[1756310325247,0.0223,4667.8,4667.6,5.86741772]
[1756310325545,0.1072,4667.7,4667.6,3.725]
[1756310325856,0.1117,4667.7,4667.6,3.725]
[1756310326676,0.1064,4667.7,4666.9,0.1072]
[1756310327081,0.02,4667.8,4667.4,2.14251206]
[1756310327249,0.1072,4667.5,4667.4,2.14252046]
[1756310327447,0.1072,4667.5,4667.4,6.17762046]
[1756310328095,0.02,4667.8,4667.7,2.14238275]
[1756310328582,0.0223,4667.8,4667.7,2.14238275]
[1756310328770,0.1295,4667.8,4667.6,3.725]
[1756310329158,0.1295,4667.8,4667.7,2.14238275]
[1756310329351,0.1272,4667.8,4667.7,2.14238275]
[1756310329959,0.1317,4667.8,4667.7,2.14238275]
[1756310330246,0.1317,4667.8,4667.2,0.1072]
[1756310330484,0.1317,4667.8,4667.3,3.725]
[1756310330683,0.1317,4667.8,4667.0,3.89787746]
[1756310330684,0.4952121,4667.8,4667.0,1.648]
[1756310330883,0.2457,4667.8,4667.2,3.725]
[1756310331180,0.2457,4667.8,4667.2,5.86760125]
[1756310331382,0.0245,4667.8,4667.2,3.725]
[1756310331574,0.1072,4667.5,4667.3,2.14252498]
[1756310331980,0.1072,4667.5,4667.4,2.14252046]
[1756310332292,0.1072,4667.5,4667.2,3.725]
[1756310332666,0.1072,4667.5,4667.3,2.14256636]
[1756310333191,0.1072,4667.5,4667.4,2.14252046]
[1756310333391,0.1072,4667.5,4667.4,2.45262046]
[1756310333756,0.1072,4667.5,4667.4,2.14252046]
[1756310334293,0.35541975,4667.8,4667.7,2.14238275]
[1756310334674,0.46261975,4667.8,4667.7,2.14238275]
[1756310334874,0.46261975,4667.8,4667.6,2.14241881]
[1756310335179,0.1272,4667.8,4667.5,6.32566199]
[1756310335380,0.1272,4667.8,4667.6,2.14242059]
[1756310335581,0.1272,4667.8,4667.7,2.14238275]
[1756310335974,0.1295,4667.8,4667.5,3.725]
[1756310336393,0.1295,4667.8,4667.7,2.14238275]
[1756310336595,0.1295,4667.8,4667.5,3.725]
[1756310336799,0.1295,4667.8,4667.5,5.86744019]
[1756310337118,0.1295,4667.8,4667.6,2.1433835]
[1756310337470,0.1295,4667.8,4667.7,2.14238275]
[1756310338095,0.1295,4667.8,4667.6,2.14341547]
[1756310338498,0.1295,4667.8,4667.6,0.001]
[1756310339195,0.1295,4667.8,4667.6,2.14342821]
[1756310339364,0.1295,4667.8,4667.6,0.001]
[1756310339571,0.1295,4667.8,4667.6,2.14340978]
[1756310340298,0.1295,4667.8,4667.6,0.001]
[1756310340616,0.2234,4667.7,4667.6,0.001]
[1756310341100,5.57108577,4667.7,4667.6,0.001]
[1756310342975,9.29508577,4667.7,4667.6,0.001]
[1756310343701,9.29508577,4667.7,4666.7,0.001]
[1756310343702,2.14256636,4667.3,4666.7,0.001]
[1756310344000,2.14279592,4666.8,4666.1,0.001]
[1756310344214,2.47587145,4666.2,4666.1,0.001]
[1756310344591,5.67881048,4666.2,4666.1,0.001]
[1756310344785,21.5535383,4666.2,4666.1,0.001]
[1756310345001,21.6394993,4666.2,4666.1,0.001]
[1756310345171,23.78275448,4666.2,4666.1,0.001]
[1756310345715,5.53705521,4666.2,4666.1,0.001]
[1756310345870,0.1072,4666.2,4666.1,0.2979]
[1756310346069,0.1072,4666.2,4666.1,2.87131737]
[1756310346467,0.1072,4666.2,4666.1,0.7282]
[1756310346672,0.1072,4666.2,4666.1,2.87131737]
[1756310348308,0.1095,4666.2,4666.1,0.001]
[1756310348804,0.1072,4666.2,4666.1,0.001]
[1756310349006,0.1072,4666.2,4666.1,0.7282]
[1756310349211,0.1072,4666.2,4666.1,2.87131737]
[1756310349586,0.1072,4666.2,4666.1,0.001]
[1756310349910,0.1072,4666.2,4666.1,2.87131737]
[1756310351297,0.1072,4666.2,4666.1,0.2979]
[1756310351298,0.1064,4666.2,4666.1,0.2979]
[1756310351810,0.1064,4666.2,4666.1,2.14411737]
[1756310352310,0.1064,4666.2,4666.1,2.87131737]
[1756310353479,0.1064,4666.2,4666.1,0.001]
[1756310353674,0.1087,4666.2,4666.1,0.001]
[1756310354277,0.1064,4666.2,4666.1,0.2979]
[1756310354610,0.1064,4666.2,4666.1,0.7282]
[1756310354906,0.1064,4666.2,4666.1,2.87131737]
[1756310356410,0.1064,4666.2,4666.1,2.44101737]
[1756310356609,0.1064,4666.2,4666.1,2.87131737]
[1756310357176,0.1064,4666.2,4666.1,0.2979]
[1756310357676,0.1064,4666.2,4666.1,2.87131737]
[1756310358774,7.0292,4666.8,4666.6,2.14286369]
[1756310359000,10.0292,4666.8,4666.7,0.2969]
[1756310359399,10.0292,4666.8,4666.6,2.14286369]
[1756310359400,7.1364,4666.8,4666.6,2.14286369]
[1756310359923,7.1364,4666.8,4666.3,2.1430153]
[1756310360119,0.1072,4666.5,4666.4,0.4303]
[1756310360418,0.1072,4666.5,4666.4,2.87017959]
[1756310360785,7.0292,4666.8,4666.7,2.14284183]
[1756310360986,7.0292,4666.8,4666.7,2.97724183]
[1756310361950,0.33546555,4667.1,4667.0,2.14270409]
[1756310362117,0.1072,4667.5,4667.4,2.14252046]
[1756310362301,0.1072,4667.5,4667.4,2.43942046]
[1756310362500,7.1364,4667.7,4667.4,2.86972046]
[1756310362701,7.47181214,4667.7,4667.5,2.14243571]
[1756310363292,7.47181214,4667.7,4667.2,2.14256862]
[1756310363293,7.47181214,4667.7,4667.4,2.14251583]
[1756310363818,7.47181214,4667.7,4667.5,2.14243994]
[1756310364002,7.47181214,4667.7,4667.6,0.7272]
[1756310364203,7.47181214,4667.7,4667.6,2.86962865]
[1756310365236,7.1364,4667.7,4667.6,2.86962865]
[1756310366101,7.1364,4667.7,4667.6,0.2969]
[1756310366305,8.45014,4667.7,4666.7,0.4303]
[1756310366607,0.1072,4667.3,4666.9,2.14273923]
[1756310366802,3.723,4667.6,4666.3,0.4303]
[1756310366803,0.0023,4667.0,4666.3,0.4303]
[1756310367008,0.1072,4666.9,4666.6,3.723]
[1756310367207,0.1072,4666.9,4666.6,5.86584991]
[1756310367552,0.1072,4666.9,4666.7,2.14280715]
[1756310367872,0.1072,4666.9,4666.8,2.14279592]
[1756310368005,0.1072,4666.9,4666.3,3.723]
[1756310368208,0.1072,4666.9,4666.7,2.14281883]
[1756310368409,0.1072,4666.9,4666.7,2.14280067]
[1756310368609,0.1072,4666.9,4666.3,3.723]
[1756310368610,0.1072,4666.9,4666.8,0.2969]
[1756310368841,0.1072,4666.9,4666.8,2.86999592]
[1756310369650,0.1072,4666.9,4666.3,3.723]
[1756310369651,0.1072,4666.9,4666.4,2.57324279]
[1756310370037,0.1072,4666.9,4666.5,0.4303]
[1756310370217,0.1072,4666.9,4666.8,0.2969]
[1756310370549,0.1072,4666.9,4666.8,2.43969592]
[1756310371253,0.1072,4666.9,4666.7,2.14283061]
[1756310371427,0.1072,4666.9,4666.3,4.1533]
[1756310371781,0.33545936,4667.1,4667.0,2.14270409]
[1756310371920,0.33545936,4667.1,4666.8,0.3103]
[1756310372352,0.33545936,4667.1,4666.7,2.14284168]
[1756310372553,0.44265936,4667.1,4666.9,2.14273045]
[1756310372851,0.44265936,4667.1,4666.5,4.2799]
[1756310373058,0.33545936,4667.1,4666.3,3.722]
[1756310373233,0.0023,4666.6,4666.4,2.14297959]
[1756310373433,0.0023,4666.6,4666.3,2.14301289]
[1756310373739,0.0023,4666.6,4666.4,2.14297732]
[1756310373948,0.33778156,4666.6,4666.4,2.14297732]
[1756310374254,0.33778156,4666.6,4666.4,2.14294114]
[1756310374423,0.33778156,4666.6,4666.1,0.001]
[1756310374770,0.1072,4666.3,4666.2,2.14307145]
[1756310375056,0.33548156,4666.6,4666.5,2.14293367]
[1756310375358,6.722,4667.6,4666.5,0.02142933]
[1756310375555,0.1072,4667.4,4666.6,4.1727]
[1756310375855,0.1064,4667.4,4666.7,0.4507]
[1756310376353,0.1064,4667.4,4667.3,2.45286636]
[1756310376553,0.1064,4667.4,4667.3,2.14256636]
[1756310376858,0.1064,4667.4,4667.3,2.45286636]
[1756310377649,0.1064,4667.4,4667.3,2.90356636]
[1756310377824,0.1064,4667.4,4667.3,2.14256636]
[1756310378762,0.1064,4667.4,4667.3,2.45286636]